[Event "Titled Tuesday Blitz November 07 Early 2023"]
[White "Mikhailovsky, Vladimir"]
[Black "ploxoi"]
[WhiteFideId "34105414"]
[WhiteElo "2835"]
[BlackElo "2455"]
[Result "1-0"]
[Round "1"]
[TimeControl "180+1"]
[Date "2023.11.07"]
[WhiteClock "0:00:07"]
[BlackClock "0:00:02"]
[Board "63"]

1. e4 {[%clk 0:03:00]}  c5 {[%clk 0:02:59]} 2. c3 {[%clk 0:03:00]}  d5 {[%clk 0:02:59]} 3. exd5 {[%clk 0:02:58]}  Qxd5 {[%clk 0:03:00]} 4. d4 {[%clk 0:02:58]}  Nf6 {[%clk 0:03:01]} 5. Nf3 {[%clk 0:02:57]}  e6 {[%clk 0:03:01]} 6. Nbd2 {[%clk 0:02:56]}  Nc6 {[%clk 0:02:52]} 7. Bc4 {[%clk 0:02:54]}  Qh5 {[%clk 0:02:50]} 8. Nb3 {[%clk 0:02:48]}  cxd4 {[%clk 0:02:40]} 9. Nbxd4 {[%clk 0:02:49]}  Bd7 {[%clk 0:02:40]} 10. O-O {[%clk 0:02:36]}  Rc8 {[%clk 0:02:39]} 11. Be2 {[%clk 0:02:23]}  Nxd4 {[%clk 0:02:16]} 12. Nxd4 {[%clk 0:02:23]}  Qa5 {[%clk 0:02:16]} 13. Bf3 {[%clk 0:02:20]}  b6 {[%clk 0:02:11]} 14. Re1 {[%clk 0:01:44]}  Be7 {[%clk 0:02:10]} 15. g4 {[%clk 0:01:21]}  h5 {[%clk 0:02:01]} 16. g5 {[%clk 0:01:13]}  Ng4 {[%clk 0:01:18]} 17. h3 {[%clk 0:01:03]}  Ne5 {[%clk 0:01:17]} 18. Bb7 {[%clk 0:01:02]}  Rb8 {[%clk 0:01:15]} 19. b4 {[%clk 0:01:01]}  Qa4 {[%clk 0:01:11]} 20. Qxa4 {[%clk 0:00:32]}  Bxa4 {[%clk 0:01:11]} 21. Be4 {[%clk 0:00:33]}  g6 {[%clk 0:00:57]} 22. Bf4 {[%clk 0:00:31]}  Bd6 {[%clk 0:00:29]} 23. Bxg6 {[%clk 0:00:30]}  Nxg6 {[%clk 0:00:23]} 24. Bxd6 {[%clk 0:00:30]}  Rd8 {[%clk 0:00:24]} 25. Be5 {[%clk 0:00:20]}  Nxe5 {[%clk 0:00:24]} 26. Rxe5 {[%clk 0:00:21]}  Rg8 {[%clk 0:00:24]} 27. h4 {[%clk 0:00:21]}  Rc8 {[%clk 0:00:23]} 28. Re3 {[%clk 0:00:20]}  Bd7 {[%clk 0:00:21]} 29. Rd1 {[%clk 0:00:20]}  Rc7 {[%clk 0:00:20]} 30. Nf5 {[%clk 0:00:19]}  Kd8 {[%clk 0:00:19]} 31. Nd6 {[%clk 0:00:17]}  Ke7 {[%clk 0:00:19]} 32. Rf3 {[%clk 0:00:13]}  Rf8 {[%clk 0:00:17]} 33. Rfd3 {[%clk 0:00:10]}  Bc6 {[%clk 0:00:16]} 34. Re3 {[%clk 0:00:10]}  Ba4 {[%clk 0:00:11]} 35. Rd4 {[%clk 0:00:09]}  Bd7 {[%clk 0:00:10]} 36. Nf5+ {[%clk 0:00:09]}  Kd8 {[%clk 0:00:10]} 37. Ng7 {[%clk 0:00:09]}  Kc8 {[%clk 0:00:07]} 38. Nxh5 {[%clk 0:00:09]}  Rh8 {[%clk 0:00:07]} 39. Nf6 {[%clk 0:00:09]}  Bc6 {[%clk 0:00:08]} 40. f3 {[%clk 0:00:08]}  a5 {[%clk 0:00:06]} 41. a3 {[%clk 0:00:08]}  axb4 {[%clk 0:00:06]} 42. axb4 {[%clk 0:00:08]}  Kb7 {[%clk 0:00:07]} 43. Kf2 {[%clk 0:00:09]}  Ra8 {[%clk 0:00:07]} 44. h5 {[%clk 0:00:07]}  Ra2+ {[%clk 0:00:05]} 45. Re2 {[%clk 0:00:07]}  Ra3 {[%clk 0:00:04]} 46. Re3 {[%clk 0:00:08]}  e5 {[%clk 0:00:03]} 47. Rd6 {[%clk 0:00:07]}  Ra2+ {[%clk 0:00:02]} 48. Kg3 {[%clk 0:00:07]}  Ra1 {[%clk 0:00:03]} 49. h6 {[%clk 0:00:07]}  Rg1+ {[%clk 0:00:03]} 50. Kh2 {[%clk 0:00:07]}  Rg4 {[%clk 0:00:02]} 51. fxg4 {[%clk 0:00:07]} 1-0


[Site "https://www.chess.com"]

[Event "Titled Tuesday Blitz November 07 Early 2023"]
[White "Escudero Donoso, Felipe"]
[Black "Yanchenko, Roman"]
[WhiteFideId "3410595"]
[BlackFideId "4137329"]
[WhiteElo "2453"]
[BlackElo "2833"]
[Result "0-1"]
[Round "1"]
[TimeControl "180+1"]
[Date "2023.11.07"]
[WhiteClock "0:00:20"]
[BlackClock "0:00:47"]
[Board "64"]

1. d4 {[%clk 0:02:57]}  d5 {[%clk 0:02:58]} 2. c4 {[%clk 0:02:57]}  c6 {[%clk 0:02:58]} 3. cxd5 {[%clk 0:02:56]}  cxd5 {[%clk 0:02:59]} 4. Nc3 {[%clk 0:02:57]}  Nc6 {[%clk 0:03:00]} 5. Bf4 {[%clk 0:02:57]}  Nf6 {[%clk 0:02:54]} 6. e3 {[%clk 0:02:56]}  a6 {[%clk 0:02:53]} 7. Bd3 {[%clk 0:02:55]}  Bg4 {[%clk 0:02:50]} 8. f3 {[%clk 0:02:53]}  Bh5 {[%clk 0:02:50]} 9. Nge2 {[%clk 0:02:54]}  Bg6 {[%clk 0:02:49]} 10. O-O {[%clk 0:02:50]}  e6 {[%clk 0:02:49]} 11. Rc1 {[%clk 0:02:49]}  Bd6 {[%clk 0:02:48]} 12. Na4 {[%clk 0:02:42]}  O-O {[%clk 0:02:47]} 13. Nc5 {[%clk 0:02:39]}  Bxc5 {[%clk 0:02:45]} 14. Rxc5 {[%clk 0:02:40]}  Qb6 {[%clk 0:02:44]} 15. b3 {[%clk 0:02:27]}  e5 {[%clk 0:02:35]} 16. Bxg6 {[%clk 0:02:23]}  hxg6 {[%clk 0:02:31]} 17. Bg3 {[%clk 0:02:16]}  Rfe8 {[%clk 0:02:29]} 18. Bf2 {[%clk 0:02:04]}  e4 {[%clk 0:02:01]} 19. f4 {[%clk 0:02:01]}  Nb4 {[%clk 0:02:01]} 20. Qd2 {[%clk 0:01:52]}  Nd3 {[%clk 0:01:57]} 21. Rc3 {[%clk 0:01:52]}  Rac8 {[%clk 0:01:54]} 22. Nc1 {[%clk 0:01:51]}  Rxc3 {[%clk 0:01:32]} 23. Qxc3 {[%clk 0:01:50]}  Qb4 {[%clk 0:01:32]} 24. Qc2 {[%clk 0:01:40]}  Qb5 {[%clk 0:01:20]} 25. a4 {[%clk 0:01:35]}  Nb4 {[%clk 0:01:04]} 26. Qc3 {[%clk 0:01:22]}  Qb6 {[%clk 0:01:04]} 27. Be1 {[%clk 0:01:10]}  a5 {[%clk 0:01:04]} 28. Bh4 {[%clk 0:01:06]}  Qe6 {[%clk 0:01:00]} 29. Qc5 {[%clk 0:01:00]}  b6 {[%clk 0:01:00]} 30. Qb5 {[%clk 0:01:00]}  Rc8 {[%clk 0:01:00]} 31. Ne2 {[%clk 0:00:53]}  Ng4 {[%clk 0:00:58]} 32. Bf2 {[%clk 0:00:48]}  Nd3 {[%clk 0:00:58]} 33. h3 {[%clk 0:00:35]}  Ngxf2 {[%clk 0:00:57]} 34. Rxf2 {[%clk 0:00:36]}  Nxf2 {[%clk 0:00:57]} 35. Kxf2 {[%clk 0:00:37]}  Qc6 {[%clk 0:00:57]} 36. Qa6 {[%clk 0:00:35]}  Ra8 {[%clk 0:00:57]} 37. Qb5 {[%clk 0:00:34]}  Qxb5 {[%clk 0:00:58]} 38. axb5 {[%clk 0:00:35]}  Rc8 {[%clk 0:00:58]} 39. Ke1 {[%clk 0:00:34]}  Rc2 {[%clk 0:00:58]} 40. Kd1 {[%clk 0:00:35]}  Rb2 {[%clk 0:00:56]} 41. Nc3 {[%clk 0:00:32]}  Rxb3 {[%clk 0:00:56]} 42. Nxd5 {[%clk 0:00:32]}  a4 {[%clk 0:00:53]} 43. Kc2 {[%clk 0:00:29]}  Rxb5 {[%clk 0:00:53]} 44. Nc3 {[%clk 0:00:26]}  Rb4 {[%clk 0:00:53]} 45. Nxe4 {[%clk 0:00:27]}  a3 {[%clk 0:00:53]} 46. Nc3 {[%clk 0:00:27]}  Rb2+ {[%clk 0:00:53]} 47. Kc1 {[%clk 0:00:27]}  b5 {[%clk 0:00:53]} 48. d5 {[%clk 0:00:26]}  b4 {[%clk 0:00:53]} 49. Na4 {[%clk 0:00:26]}  Re2 {[%clk 0:00:47]} 50. d6 {[%clk 0:00:20]}  a2 {[%clk 0:00:47]} 0-1


[Site "https://www.chess.com"]

[Event "Titled Tuesday Blitz November 07 Early 2023"]
[White "ChessBrainiacOnTwitch"]
[Black "Haitin, Ilja"]
[BlackFideId "4501764"]
[WhiteElo "2831"]
[BlackElo "2452"]
[Result "0-1"]
[Round "1"]
[TimeControl "180+1"]
[Date "2023.11.07"]
[WhiteClock "0:00:17"]
[BlackClock "0:00:05"]
[Board "65"]

1. e4 {[%clk 0:03:00]}  e5 {[%clk 0:02:58]} 2. Nf3 {[%clk 0:03:00]}  Nc6 {[%clk 0:02:57]} 3. Bc4 {[%clk 0:03:01]}  d6 {[%clk 0:02:51]} 4. d4 {[%clk 0:03:01]}  Nf6 {[%clk 0:02:49]} 5. Nc3 {[%clk 0:03:01]}  Be7 {[%clk 0:02:47]} 6. O-O {[%clk 0:03:01]}  Bg4 {[%clk 0:02:37]} 7. dxe5 {[%clk 0:02:57]}  dxe5 {[%clk 0:02:31]} 8. Be3 {[%clk 0:02:53]}  Qxd1 {[%clk 0:02:22]} 9. Rfxd1 {[%clk 0:02:52]}  O-O {[%clk 0:02:16]} 10. h3 {[%clk 0:02:42]}  Bxf3 {[%clk 0:02:11]} 11. gxf3 {[%clk 0:02:43]}  Rad8 {[%clk 0:02:08]} 12. f4 {[%clk 0:02:39]}  Bb4 {[%clk 0:01:59]} 13. f3 {[%clk 0:02:20]}  Bxc3 {[%clk 0:01:48]} 14. bxc3 {[%clk 0:02:21]}  Nh5 {[%clk 0:01:46]} 15. fxe5 {[%clk 0:02:12]}  Nxe5 {[%clk 0:01:47]} 16. Be2 {[%clk 0:02:12]}  Ng3 {[%clk 0:01:42]} 17. Kf2 {[%clk 0:02:09]}  Nxe2 {[%clk 0:01:41]} 18. Kxe2 {[%clk 0:02:10]}  Nc4 {[%clk 0:01:32]} 19. Bxa7 {[%clk 0:01:52]}  b6 {[%clk 0:01:26]} 20. Rxd8 {[%clk 0:01:51]}  Rxd8 {[%clk 0:01:25]} 21. Rd1 {[%clk 0:01:52]}  Ra8 {[%clk 0:01:06]} 22. Rd7 {[%clk 0:01:51]}  Rc8 {[%clk 0:00:32]} 23. Rd4 {[%clk 0:01:39]}  Na5 {[%clk 0:00:27]} 24. Rd7 {[%clk 0:00:13]}  Nc6 {[%clk 0:00:23]} 25. Ke3 {[%clk 0:00:12]}  Nxa7 {[%clk 0:00:23]} 26. Kd4 {[%clk 0:00:12]}  Kf8 {[%clk 0:00:22]} 27. Kc4 {[%clk 0:00:11]}  Ke8 {[%clk 0:00:22]} 28. Rd5 {[%clk 0:00:12]}  Nc6 {[%clk 0:00:21]} 29. Kb5 {[%clk 0:00:11]}  Ne7 {[%clk 0:00:19]} 30. Rg5 {[%clk 0:00:11]}  g6 {[%clk 0:00:19]} 31. f4 {[%clk 0:00:11]}  Ra8 {[%clk 0:00:18]} 32. Rg2 {[%clk 0:00:07]}  Rxa2 {[%clk 0:00:17]} 33. c4 {[%clk 0:00:08]}  Rb2+ {[%clk 0:00:16]} 34. Ka6 {[%clk 0:00:08]}  Rb4 {[%clk 0:00:16]} 35. Kb7 {[%clk 0:00:08]}  Rxc4 {[%clk 0:00:16]} 36. Re2 {[%clk 0:00:09]}  Kd7 {[%clk 0:00:15]} 37. Rd2+ {[%clk 0:00:10]}  Ke6 {[%clk 0:00:15]} 38. e5 {[%clk 0:00:10]}  Rxf4 {[%clk 0:00:14]} 39. Kxc7 {[%clk 0:00:10]}  Nd5+ {[%clk 0:00:12]} 40. Kc6 {[%clk 0:00:09]}  Ne7+ {[%clk 0:00:09]} 41. Kxb6 {[%clk 0:00:09]}  Kxe5 {[%clk 0:00:10]} 42. Re2+ {[%clk 0:00:09]}  Kd6 {[%clk 0:00:09]} 43. Rd2+ {[%clk 0:00:10]}  Nd5+ {[%clk 0:00:09]} 44. Kb5 {[%clk 0:00:10]}  Rb4+ {[%clk 0:00:09]} 45. Ka5 {[%clk 0:00:11]}  Rc4 {[%clk 0:00:09]} 46. Kb5 {[%clk 0:00:11]}  Rc5+ {[%clk 0:00:08]} 47. Ka4 {[%clk 0:00:12]}  Kc6 {[%clk 0:00:08]} 48. Kb3 {[%clk 0:00:12]}  Rc3+ {[%clk 0:00:08]} 49. Kb2 {[%clk 0:00:13]}  Rxh3 {[%clk 0:00:08]} 50. Re2 {[%clk 0:00:13]}  f5 {[%clk 0:00:08]} 51. Re8 {[%clk 0:00:13]}  Kd6 {[%clk 0:00:08]} 52. c4 {[%clk 0:00:14]}  Ne3 {[%clk 0:00:07]} 53. Rh8 {[%clk 0:00:15]}  Nxc4+ {[%clk 0:00:07]} 54. Kc2 {[%clk 0:00:15]}  Ne5 {[%clk 0:00:07]} 55. Kd2 {[%clk 0:00:16]}  Ke6 {[%clk 0:00:08]} 56. Ke2 {[%clk 0:00:17]}  Kf6 {[%clk 0:00:08]} 57. Kf2 {[%clk 0:00:17]}  Kg5 {[%clk 0:00:08]} 58. Kg2 {[%clk 0:00:18]}  Rh4 {[%clk 0:00:08]} 59. Kg3 {[%clk 0:00:18]}  f4+ {[%clk 0:00:08]} 60. Kg2 {[%clk 0:00:19]}  Kg4 {[%clk 0:00:08]} 61. Re8 {[%clk 0:00:18]}  Nc4 {[%clk 0:00:07]} 62. Rf8 {[%clk 0:00:18]}  Ne3+ {[%clk 0:00:07]} 63. Kg1 {[%clk 0:00:19]}  g5 {[%clk 0:00:08]} 64. Re8 {[%clk 0:00:18]}  h6 {[%clk 0:00:08]} 65. Rh8 {[%clk 0:00:19]}  Kg3 {[%clk 0:00:08]} 66. Rb8 {[%clk 0:00:16]}  Kg4 {[%clk 0:00:08]} 67. Rb2 {[%clk 0:00:15]}  Rh3 {[%clk 0:00:08]} 68. Rb8 {[%clk 0:00:14]}  Rg3+ {[%clk 0:00:08]} 69. Kh2 {[%clk 0:00:15]}  Rg2+ {[%clk 0:00:08]} 70. Kh1 {[%clk 0:00:15]}  Ra2 {[%clk 0:00:08]} 71. Rb1 {[%clk 0:00:15]}  f3 {[%clk 0:00:06]} 72. Rb4+ {[%clk 0:00:16]}  Kg3 {[%clk 0:00:06]} 73. Rb1 {[%clk 0:00:17]}  Rh2+ {[%clk 0:00:04]} 74. Kg1 {[%clk 0:00:17]}  f2# {[%clk 0:00:05]} 0-1


[Site "https://www.chess.com"]

[Event "Titled Tuesday Blitz November 07 Early 2023"]
[White "Materia, Marco"]
[Black "AlivodicDario"]
[WhiteFideId "45150451"]
[WhiteElo "2813"]
[BlackElo "2444"]
[Result "1-0"]
[Round "1"]
[TimeControl "180+1"]
[Date "2023.11.07"]
[WhiteClock "0:00:14"]
[BlackClock "0:00:01"]
[Board "71"]

1. d4 {[%clk 0:03:00]}  d5 {[%clk 0:02:59]} 2. c4 {[%clk 0:02:59]}  e6 {[%clk 0:03:00]} 3. Nf3 {[%clk 0:02:59]}  c6 {[%clk 0:03:00]} 4. Qc2 {[%clk 0:02:54]}  f5 {[%clk 0:02:47]} 5. Bf4 {[%clk 0:02:51]}  Bd6 {[%clk 0:02:46]} 6. Bxd6 {[%clk 0:02:51]}  Qxd6 {[%clk 0:02:47]} 7. e3 {[%clk 0:02:50]}  Nf6 {[%clk 0:02:48]} 8. Nc3 {[%clk 0:02:50]}  O-O {[%clk 0:02:47]} 9. Bd3 {[%clk 0:02:47]}  Ne4 {[%clk 0:02:47]} 10. O-O {[%clk 0:02:47]}  Nd7 {[%clk 0:02:48]} 11. Rac1 {[%clk 0:02:39]}  b6 {[%clk 0:02:47]} 12. cxd5 {[%clk 0:02:39]}  exd5 {[%clk 0:02:43]} 13. Nd2 {[%clk 0:02:22]}  Bb7 {[%clk 0:02:33]} 14. f3 {[%clk 0:02:19]}  Nxc3 {[%clk 0:02:27]} 15. bxc3 {[%clk 0:02:18]}  g6 {[%clk 0:02:22]} 16. f4 {[%clk 0:02:04]}  c5 {[%clk 0:02:17]} 17. Nf3 {[%clk 0:02:03]}  c4 {[%clk 0:02:14]} 18. Be2 {[%clk 0:02:03]}  Bc6 {[%clk 0:02:14]} 19. Ne5 {[%clk 0:02:03]}  Nxe5 {[%clk 0:02:11]} 20. fxe5 {[%clk 0:01:56]}  Qe7 {[%clk 0:02:00]} 21. Rf4 {[%clk 0:01:52]}  b5 {[%clk 0:01:59]} 22. Rcf1 {[%clk 0:01:51]}  a5 {[%clk 0:01:58]} 23. g4 {[%clk 0:01:50]}  fxg4 {[%clk 0:01:56]} 24. Bxg4 {[%clk 0:01:50]}  Bd7 {[%clk 0:01:51]} 25. Bf3 {[%clk 0:01:46]}  Be6 {[%clk 0:01:27]} 26. Qg2 {[%clk 0:01:45]}  Rad8 {[%clk 0:01:15]} 27. Rxf8+ {[%clk 0:01:45]}  Rxf8 {[%clk 0:01:07]} 28. Bxd5 {[%clk 0:01:34]}  Rxf1+ {[%clk 0:00:56]} 29. Kxf1 {[%clk 0:01:34]}  Qf7+ {[%clk 0:00:53]} 30. Bf3 {[%clk 0:01:35]}  Qf5 {[%clk 0:00:43]} 31. Kf2 {[%clk 0:01:10]}  b4 {[%clk 0:00:26]} 32. e4 {[%clk 0:01:09]}  Qf4 {[%clk 0:00:25]} 33. d5 {[%clk 0:01:09]}  bxc3 {[%clk 0:00:12]} 34. Ke1 {[%clk 0:00:26]}  Qe3+ {[%clk 0:00:09]} 35. Kd1 {[%clk 0:00:26]}  Qd3+ {[%clk 0:00:03]} 36. Kc1 {[%clk 0:00:24]}  Bd7 {[%clk 0:00:04]} 37. Qe2 {[%clk 0:00:19]}  Ba4 {[%clk 0:00:03]} 38. e6 {[%clk 0:00:19]}  c2 {[%clk 0:00:02]} 39. Qxd3 {[%clk 0:00:17]}  cxd3 {[%clk 0:00:03]} 40. d6 {[%clk 0:00:17]}  Kf8 {[%clk 0:00:03]} 41. e5 {[%clk 0:00:18]}  Ke8 {[%clk 0:00:01]} 42. Be4 {[%clk 0:00:16]}  Bb5 {[%clk 0:00:01]} 43. e7 {[%clk 0:00:15]}  Kd7 {[%clk 0:00:01]} 44. Bd5 {[%clk 0:00:15]}  Ke8 {[%clk 0:00:01]} 45. Bg8 {[%clk 0:00:13]}  h6 {[%clk 0:00:01]} 46. e6 {[%clk 0:00:13]}  g5 {[%clk 0:00:01]} 47. Bf7# {[%clk 0:00:14]} 1-0


[Site "https://www.chess.com"]

[Event "Titled Tuesday Blitz November 07 Early 2023"]
[White "Sokolovsky, Yahli"]
[Black "Tworuszka, Michal"]
[WhiteFideId "2820242"]
[BlackFideId "1117858"]
[WhiteElo "2797"]
[BlackElo "2437"]
[Result "1-0"]
[Round "1"]
[TimeControl "180+1"]
[Date "2023.11.07"]
[WhiteClock "0:00:14"]
[BlackClock "0:00:03"]
[Board "79"]

1. b3 {[%clk 0:03:00]}  e5 {[%clk 0:02:56]} 2. Bb2 {[%clk 0:03:01]}  Nc6 {[%clk 0:02:56]} 3. e3 {[%clk 0:03:02]}  Nf6 {[%clk 0:02:56]} 4. Nf3 {[%clk 0:03:03]}  e4 {[%clk 0:02:50]} 5. Nd4 {[%clk 0:03:03]}  Nxd4 {[%clk 0:02:41]} 6. Bxd4 {[%clk 0:03:04]}  d5 {[%clk 0:02:41]} 7. c4 {[%clk 0:03:04]}  c6 {[%clk 0:02:41]} 8. Nc3 {[%clk 0:02:59]}  Be7 {[%clk 0:02:25]} 9. cxd5 {[%clk 0:02:53]}  cxd5 {[%clk 0:02:22]} 10. f4 {[%clk 0:02:17]}  O-O {[%clk 0:01:52]} 11. Be2 {[%clk 0:02:16]}  b6 {[%clk 0:01:44]} 12. g4 {[%clk 0:02:06]}  Bc5 {[%clk 0:01:39]} 13. g5 {[%clk 0:01:23]}  Bxd4 {[%clk 0:01:32]} 14. exd4 {[%clk 0:01:24]}  Ne8 {[%clk 0:01:30]} 15. Bg4 {[%clk 0:01:23]}  Bxg4 {[%clk 0:01:15]} 16. Qxg4 {[%clk 0:01:24]}  f5 {[%clk 0:01:13]} 17. Qe2 {[%clk 0:01:03]}  Qd6 {[%clk 0:01:02]} 18. Rf1 {[%clk 0:01:00]}  Nc7 {[%clk 0:00:57]} 19. Qe3 {[%clk 0:00:50]}  b5 {[%clk 0:00:52]} 20. Kf2 {[%clk 0:00:49]}  Rfc8 {[%clk 0:00:48]} 21. Kg3 {[%clk 0:00:43]}  a6 {[%clk 0:00:43]} 22. Rac1 {[%clk 0:00:43]}  Ne6 {[%clk 0:00:41]} 23. h4 {[%clk 0:00:42]}  Rc7 {[%clk 0:00:37]} 24. Ne2 {[%clk 0:00:42]}  Rac8 {[%clk 0:00:37]} 25. Rc3 {[%clk 0:00:42]}  b4 {[%clk 0:00:34]} 26. Rxc7 {[%clk 0:00:33]}  Rxc7 {[%clk 0:00:35]} 27. d3 {[%clk 0:00:22]}  Rc2 {[%clk 0:00:26]} 28. dxe4 {[%clk 0:00:23]}  dxe4 {[%clk 0:00:26]} 29. Rc1 {[%clk 0:00:23]}  Rxc1 {[%clk 0:00:05]} 30. Qxc1 {[%clk 0:00:24]}  Qc7 {[%clk 0:00:05]} 31. Qc4 {[%clk 0:00:20]}  Kf7 {[%clk 0:00:02]} 32. Kf2 {[%clk 0:00:17]}  Ke7 {[%clk 0:00:02]} 33. Ke3 {[%clk 0:00:17]}  Qxc4 {[%clk 0:00:02]} 34. bxc4 {[%clk 0:00:17]}  Kd6 {[%clk 0:00:02]} 35. Nc1 {[%clk 0:00:17]}  g6 {[%clk 0:00:02]} 36. Nb3 {[%clk 0:00:18]}  Nc7 {[%clk 0:00:01]} 37. d5 {[%clk 0:00:14]}  Ne8 {[%clk 0:00:01]} 38. Kd4 {[%clk 0:00:14]}  Nc7 {[%clk 0:00:01]} 39. Nc5 {[%clk 0:00:12]}  Ke7 {[%clk 0:00:01]} 40. Nb7 {[%clk 0:00:10]}  Kd7 {[%clk 0:00:01]} 41. Na5 {[%clk 0:00:09]}  Ne8 {[%clk 0:00:02]} 42. Nc6 {[%clk 0:00:09]}  Nc7 {[%clk 0:00:02]} 43. Nxb4 {[%clk 0:00:10]}  a5 {[%clk 0:00:02]} 44. Nc6 {[%clk 0:00:10]}  a4 {[%clk 0:00:03]} 45. Ne5+ {[%clk 0:00:11]}  Kd6 {[%clk 0:00:03]} 46. c5+ {[%clk 0:00:11]}  Ke7 {[%clk 0:00:03]} 47. d6+ {[%clk 0:00:12]}  Kd8 {[%clk 0:00:04]} 48. dxc7+ {[%clk 0:00:13]}  Kxc7 {[%clk 0:00:05]} 49. Nc4 {[%clk 0:00:13]}  Kc6 {[%clk 0:00:05]} 50. Ne3 {[%clk 0:00:14]}  Kb5 {[%clk 0:00:03]} 51. Kd5 {[%clk 0:00:14]} 1-0


[Site "https://www.chess.com"]

[Event "Titled Tuesday Blitz November 07 Early 2023"]
[White "Herman, Daniel"]
[Black "Nazari, Arad"]
[WhiteFideId "30935008"]
[BlackFideId "12577324"]
[WhiteElo "2436"]
[BlackElo "2794"]
[Result "1-0"]
[Round "1"]
[TimeControl "180+1"]
[Date "2023.11.07"]
[WhiteClock "0:00:34"]
[BlackClock "0:00:04"]
[Board "80"]

1. c4 {[%clk 0:03:00]}  e5 {[%clk 0:02:59]} 2. Nc3 {[%clk 0:03:01]}  Bb4 {[%clk 0:02:58]} 3. Nd5 {[%clk 0:03:00]}  Bc5 {[%clk 0:02:58]} 4. e3 {[%clk 0:02:54]}  c6 {[%clk 0:02:53]} 5. d4 {[%clk 0:02:41]}  cxd5 {[%clk 0:02:39]} 6. dxc5 {[%clk 0:02:40]}  dxc4 {[%clk 0:02:38]} 7. Bxc4 {[%clk 0:02:17]}  Qa5+ {[%clk 0:02:36]} 8. Bd2 {[%clk 0:02:17]}  Qxc5 {[%clk 0:02:31]} 9. Rc1 {[%clk 0:02:17]}  Qe7 {[%clk 0:02:19]} 10. Bxf7+ {[%clk 0:02:10]}  Kxf7 {[%clk 0:02:20]} 11. Rxc8 {[%clk 0:02:10]}  d5 {[%clk 0:01:57]} 12. Qb3 {[%clk 0:02:05]}  Qd7 {[%clk 0:01:47]} 13. Qc2 {[%clk 0:01:32]}  Ke6 {[%clk 0:01:04]} 14. Nf3 {[%clk 0:01:16]}  g6 {[%clk 0:00:56]} 15. e4 {[%clk 0:01:05]}  dxe4 {[%clk 0:00:38]} 16. Ng5+ {[%clk 0:00:56]}  Kf6 {[%clk 0:00:38]} 17. Nxe4+ {[%clk 0:00:55]}  Kg7 {[%clk 0:00:25]} 18. Rc7 {[%clk 0:00:55]}  Nf6 {[%clk 0:00:23]} 19. Nxf6 {[%clk 0:00:49]}  Kxf6 {[%clk 0:00:24]} 20. Rxd7 {[%clk 0:00:45]}  Nxd7 {[%clk 0:00:24]} 21. f4 {[%clk 0:00:42]}  Rac8 {[%clk 0:00:22]} 22. fxe5+ {[%clk 0:00:41]}  Kg7 {[%clk 0:00:21]} 23. Bc3 {[%clk 0:00:39]}  Rhe8 {[%clk 0:00:22]} 24. O-O {[%clk 0:00:37]}  Nc5 {[%clk 0:00:14]} 25. e6+ {[%clk 0:00:36]}  Kg8 {[%clk 0:00:14]} 26. Qf2 {[%clk 0:00:36]}  Rc7 {[%clk 0:00:04]} 27. Qd4 {[%clk 0:00:34]} 1-0


[Site "https://www.chess.com"]

[Event "Titled Tuesday Blitz November 07 Early 2023"]
[White "Mekhitarian, Krikor Sevag"]
[Black "Jesseinkman"]
[WhiteFideId "2107660"]
[WhiteElo "2789"]
[BlackElo "2436"]
[Result "1-0"]
[Round "1"]
[TimeControl "180+1"]
[Date "2023.11.07"]
[WhiteClock "0:00:53"]
[BlackClock "0:00:17"]
[Board "81"]

1. Nf3 {[%clk 0:03:00]}  d5 {[%clk 0:02:58]} 2. c4 {[%clk 0:03:00]}  e6 {[%clk 0:02:57]} 3. d4 {[%clk 0:02:59]}  c5 {[%clk 0:02:57]} 4. cxd5 {[%clk 0:02:59]}  exd5 {[%clk 0:02:57]} 5. g3 {[%clk 0:02:59]}  Nc6 {[%clk 0:02:57]} 6. Bg2 {[%clk 0:02:59]}  Nf6 {[%clk 0:02:57]} 7. O-O {[%clk 0:03:00]}  Be7 {[%clk 0:02:58]} 8. Nc3 {[%clk 0:02:56]}  O-O {[%clk 0:02:57]} 9. Bg5 {[%clk 0:02:57]}  c4 {[%clk 0:02:57]} 10. Ne5 {[%clk 0:02:56]}  Be6 {[%clk 0:02:56]} 11. b3 {[%clk 0:02:56]}  h6 {[%clk 0:02:54]} 12. Bxf6 {[%clk 0:02:43]}  Bxf6 {[%clk 0:02:55]} 13. Nxc6 {[%clk 0:02:43]}  bxc6 {[%clk 0:02:55]} 14. bxc4 {[%clk 0:02:44]}  dxc4 {[%clk 0:02:56]} 15. e3 {[%clk 0:02:44]}  c5 {[%clk 0:02:57]} 16. Rc1 {[%clk 0:02:28]}  Rc8 {[%clk 0:02:49]} 17. d5 {[%clk 0:02:25]}  Bf5 {[%clk 0:02:41]} 18. Ne4 {[%clk 0:02:17]}  Bxe4 {[%clk 0:02:37]} 19. Bxe4 {[%clk 0:02:18]}  c3 {[%clk 0:02:38]} 20. Bc2 {[%clk 0:02:09]}  c4 {[%clk 0:02:26]} 21. Kg2 {[%clk 0:02:04]}  Qa5 {[%clk 0:02:26]} 22. e4 {[%clk 0:02:04]}  Qc5 {[%clk 0:02:06]} 23. f4 {[%clk 0:02:02]}  Bd4 {[%clk 0:02:04]} 24. Qf3 {[%clk 0:02:02]}  Be3 {[%clk 0:01:54]} 25. Rce1 {[%clk 0:01:56]}  Bd2 {[%clk 0:01:54]} 26. Rb1 {[%clk 0:01:56]}  Rb8 {[%clk 0:01:53]} 27. e5 {[%clk 0:01:36]}  Qe3 {[%clk 0:01:41]} 28. Qxe3 {[%clk 0:01:29]}  Bxe3 {[%clk 0:01:42]} 29. Kf3 {[%clk 0:01:23]}  Bc5 {[%clk 0:01:30]} 30. d6 {[%clk 0:01:18]}  Rb2 {[%clk 0:01:28]} 31. Rxb2 {[%clk 0:01:18]}  cxb2 {[%clk 0:01:29]} 32. Ke4 {[%clk 0:01:18]}  c3 {[%clk 0:01:20]} 33. Kd5 {[%clk 0:01:11]}  Be3 {[%clk 0:01:17]} 34. f5 {[%clk 0:01:02]}  Rb8 {[%clk 0:00:47]} 35. e6 {[%clk 0:01:00]}  Bc1 {[%clk 0:00:17]} 36. e7 {[%clk 0:00:53]} 1-0


[Site "https://www.chess.com"]